bitfinex-derivatives/quotes_SOLF0:USTF0_20240907
["timestamp","ask_amount","ask_price","bid_price","bid_amount"]
[1725715964748,10.0490835,127.61,127.55,13.55703262]
[1725715965047,0.4090835,127.6,127.55,13.55703262]
[1725715966249,9.64,127.61,127.55,13.55703262]
[1725715966455,0.40906068,127.6,127.55,13.55703262]
[1725715966757,9.64,127.61,127.55,13.55703262]
[1725715966953,3.9196,127.57,127.55,13.55703262]
[1725715967651,3.9196,127.57,127.55,9.64]
[1725715968350,3.9196,127.57,127.55,13.55498639]
[1725715970757,1.3359,127.63,127.56,9.64]
[1725715970959,0.40905337,127.62,127.56,9.64]
[1725715971554,3.9191,127.59,127.56,13.5598]
[1725715977359,3.9191,127.59,127.56,9.64]
[1725715977564,9.64,127.61,127.55,17.47498639]
[1725715977862,0.40906765,127.6,127.55,17.47498639]
[1725715978262,0.40906765,127.6,127.55,13.55498639]
[1725715978459,0.40906765,127.6,127.55,9.64]
[1725715978659,0.40906765,127.6,127.55,13.64424231]
[1725715979061,3.9195,127.58,127.55,13.64424231]
[1725715979262,3.9195,127.58,127.55,17.56444231]
[1725715980861,3.9195,127.58,127.55,13.64424231]
[1725715981068,3.9195,127.58,127.55,4.00424231]
[1725715981274,3.9195,127.58,127.55,13.64424231]
[1725715981473,3.9195,127.58,127.55,9.64]
[1725715981769,3.9196,127.57,127.55,13.58660498]
[1725715983167,3.9194,127.58,127.55,17.50680498]
[1725715983566,3.9194,127.58,127.55,13.58660498]
[1725715983768,3.9196,127.57,127.55,13.58660498]
[1725715986868,3.9199,127.56,127.53,3.9206]
[1725715987169,3.9199,127.56,127.53,13.5606]
[1725715989062,3.9202,127.55,127.53,3.9206]
[1725715989265,3.9202,127.55,127.52,13.5609]
[1725715989565,9.64,127.56,127.48,3.9558]
[1725715989763,27.6982,127.59,127.49,9.64]
[1725715989965,0.40933294,127.58,127.5,9.64]
[1725715990164,3.9202,127.55,127.53,9.64]
[1725715990772,4.1382,127.59,127.53,9.64]
[1725715990773,3.9205,127.54,127.53,9.64]
[1725715991076,31.3944,127.65,127.53,9.64]
[1725715991268,31.3944,127.65,127.49,4.01898717]
[1725715991269,3.9194,127.58,127.56,9.64]
[1725715991567,3.9194,127.58,127.56,3.87938727]
[1725715991773,3.9194,127.58,127.55,9.64]
[1725715991979,3.87389738,127.63,127.57,9.64]
[1725715992281,27.7157,127.65,127.58,3.90378561]
[1725715992282,0.40898711,127.62,127.58,3.90378561]
[1725715992468,3.9189,127.59,127.57,9.64]
[1725715992773,3.9189,127.59,127.56,9.64]
[1725715993271,3.9189,127.59,127.56,13.64808523]
[1725715995975,3.9186,127.6,127.57,9.64]
[1725715996479,3.9191,127.59,127.57,9.64]
[1725715996671,3.9191,127.59,127.56,13.64808523]
[1725715998477,3.9191,127.59,127.56,4.00808523]
[1725715998672,3.9191,127.59,127.57,9.64]
[1725715998877,3.9191,127.59,127.57,13.57406123]
[1725716000482,3.9188,127.6,127.57,17.49366123]
[1725716000678,3.9188,127.6,127.57,13.57406123]
[1725716001579,3.9188,127.6,127.58,9.64]
[1725716001785,4.1557,127.65,127.59,9.64]
[1725716001986,4.1557,127.65,127.61,9.56591394]
[1725716001987,0.40877161,127.64,127.61,9.56591394]
[1725716002184,3.9179,127.63,127.61,9.56591394]
[1725716002878,3.918,127.62,127.61,9.56591394]
[1725716004782,3.9179,127.63,127.61,9.56591394]
[1725716006287,3.918,127.62,127.61,9.56591394]
[1725716008787,3.918,127.62,127.61,9.64]
[1725716012884,3.9183,127.61,127.59,9.64]
[1725716013079,3.9183,127.61,127.58,9.64]
[1725716014094,3.9183,127.61,127.58,13.5592]
[1725716014493,12.3849,127.65,127.58,9.64]
[1725716014494,3.9187,127.6,127.58,9.64]
[1725716015083,107.41343047,127.66,127.57,6.57766123]
[1725716015084,107.41343047,127.66,127.59,9.64]
[1725716015286,107.41343047,127.66,127.61,9.64]
[1725716015489,0.40278649,127.65,127.61,9.64]
[1725716015792,3.9179,127.63,127.61,9.64]
[1725716016788,3.9181,127.62,127.6,9.64]
[1725716017096,9.64,127.63,127.57,3.93406123]
[1725716017293,3.9189,127.6,127.56,17.46335318]
[1725716017594,9.64,127.63,127.55,9.64]
[1725716017595,9.64,127.62,127.55,9.64]
[1725716017891,9.64,127.62,127.51,2.6804]
[1725716017892,3.9191,127.59,127.56,13.4651666]
[1725716018393,3.9191,127.59,127.56,17.3848666]
[1725716018702,3.9189,127.6,127.56,13.4651666]
[1725716019199,1.381,127.62,127.57,3.9195]
[1725716019596,1.381,127.62,127.56,3.8251666]
[1725716019791,3.9191,127.59,127.56,13.5597]
[1725716020099,3.9191,127.59,127.56,17.48796342]
[1725716021587,3.9191,127.59,127.57,3.9196]
[1725716022493,7.8335,127.67,127.56,13.56826342]
[1725716022494,7.8335,127.67,127.59,3.9189]
[1725716022689,0.40823051,127.66,127.6,9.64]
[1725716023094,3.9183,127.62,127.6,9.64]
[1725716025591,3.9178,127.63,127.6,9.64]
[1725716030400,3.9181,127.62,127.59,13.5589]
[1725716036910,3.9184,127.61,127.59,13.5589]
[1725716037699,3.9184,127.61,127.58,3.9192]
[1725716037902,3.9184,127.61,127.58,13.5592]
[1725716045212,3.9186,127.6,127.58,13.5592]
[1725716054622,13.63114211,127.63,127.56,3.92826342]
[1725716054823,9.64,127.63,127.56,9.64]
[1725716055129,13.58450105,127.63,127.57,3.92529591]
[1725716055323,14.88160105,127.63,127.57,3.92529591]
[1725716055629,0.40845365,127.62,127.57,3.92529591]
[1725716055925,14.88160105,127.63,127.57,13.56529591]
[1725716056118,3.9189,127.6,127.57,17.48479591]
[1725716056317,14.88160105,127.63,127.57,13.56529591]
[1725716057028,0.40844932,127.62,127.57,13.56529591]
[1725716057225,10.9371,127.63,127.57,13.56529591]
[1725716057726,3.9188,127.6,127.57,17.48479591]
[1725716057922,3.9188,127.6,127.58,9.64]
[1725716058122,1.2971,127.63,127.58,9.64]
[1725716058324,3.9185,127.61,127.58,13.5592]
[1725716059617,3.9182,127.62,127.59,3.9188]
[1725716059826,3.9182,127.62,127.6,9.64]
[1725716063327,3.9184,127.61,127.58,3.9191]
[1725716063527,3.9184,127.61,127.58,13.5591]
[1725716063933,3.9184,127.61,127.58,17.38915408]
[1725716064428,3.9184,127.61,127.59,3.9189]
[1725716068429,3.9182,127.62,127.59,3.9189]
[1725716076234,3.9182,127.62,127.6,3.9186]
[1725716077433,3.9183,127.61,127.59,3.9188]
[1725716078028,9.64,127.65,127.59,3.9188]
[1725716078029,3.9173,127.65,127.6,5.93732411]
[1725716078231,3.9173,127.65,127.62,9.64]
[1725716078631,3.9173,127.65,127.62,13.5579]
[1725716078832,3.9173,127.65,127.62,9.64]
[1725716080538,3.9173,127.65,127.63,3.9177]
[1725716081742,3.9173,127.65,127.62,13.5578]
[1725716082046,3.9173,127.65,127.62,3.9178]
[1725716088831,9.64,127.65,127.58,3.83005408]
[1725716089035,11.0186,127.65,127.56,2.7696]
[1725716089248,13.7104,127.65,127.58,9.64]
[1725716089546,13.7104,127.65,127.59,3.9188]
[1725716089946,13.7104,127.65,127.59,9.85934432]
[1725716090146,4.0704,127.65,127.59,9.85934432]
[1725716090352,13.7104,127.65,127.59,3.9188]
[1725716090646,13.7104,127.65,127.6,3.9186]
[1725716090844,3.9179,127.63,127.6,13.5586]
[1725716098641,13.7104,127.65,127.6,9.64]
[1725716098846,13.7104,127.65,127.59,3.9187]
[1725716099141,13.7104,127.65,127.58,9.64]
[1725716099645,13.7104,127.65,127.58,13.5591]
[1725716100048,3.9184,127.61,127.58,13.5591]
[1725716101351,3.9184,127.61,127.58,3.9191]
[1725716102647,3.9181,127.62,127.59,3.9189]
[1725716102952,3.9181,127.62,127.59,13.5589]
[1725716104050,3.9179,127.63,127.6,13.5586]
[1725716104250,4.0704,127.65,127.6,9.64]
[1725716104749,101.66863047,127.66,127.62,3.918]
[1725716105351,3.9172,127.65,127.62,3.918]
[1725716105545,101.66863047,127.66,127.63,3.88165771]
[1725716105753,3.9171,127.65,127.63,3.88165771]
[1725716106255,101.66863047,127.66,127.61,13.5582]
[1725716107251,3.9175,127.64,127.61,13.5582]
[1725716114143,3.9175,127.64,127.62,3.9179]
[1725716114342,3.9175,127.64,127.63,3.84404388]
[1725716117057,3.9173,127.65,127.63,3.84404388]
[1725716118156,3.917,127.66,127.63,3.9175]
[1725716118360,3.917,127.66,127.62,9.64]
[1725716118361,4.0531,127.69,127.64,13.5326306]
[1725716118664,4.0531,127.69,127.64,9.64]
[1725716119050,3.9163,127.68,127.65,3.917]
[1725716119261,9.64,127.68,127.64,3.9169277]
[1725716119568,9.64,127.68,127.62,9.64]
[1725716119965,9.64,127.68,127.63,3.9174]
[1725716120261,9.64,127.68,127.63,7.77828761]
[1725716120462,3.917,127.66,127.63,7.77828761]
[1725716122367,3.917,127.66,127.63,17.41828761]
[1725716122963,3.9167,127.67,127.63,13.50088761]
[1725716123360,3.9167,127.67,127.64,3.9173]
[1725716125161,3.9165,127.67,127.64,3.9171]
[1725716126365,3.9165,127.67,127.65,3.917]
[1725716132667,3.916,127.69,127.66,13.5566]
[1725716133664,3.9158,127.7,127.67,3.9163]
[1725716134264,3.9154,127.71,127.67,9.64]
[1725716134978,3.9151,127.72,127.69,3.9159]
[1725716136275,9.64,127.71,127.64,2.7087]
[1725716136473,9.64,127.71,127.64,12.3487]
[1725716136784,9.64,127.71,127.66,3.9166]
[1725716136785,3.916,127.69,127.66,3.9166]
[1725716137082,3.916,127.69,127.64,12.3487]
[1725716137265,3.916,127.69,127.66,3.9165]
[1725716139980,3.9157,127.7,127.67,3.9163]
[1725716141080,3.9159,127.69,127.66,13.5567]
[1725716145584,3.9159,127.69,127.67,3.9164]
[1725716145977,2.7464,127.73,127.69,3.9157]
[1725716146679,3.9151,127.72,127.7,4.00391696]
[1725716147280,3.9151,127.72,127.69,3.9157]
[1725716148081,3.9154,127.71,127.68,3.916]
[1725716148290,3.9154,127.71,127.68,13.556]
[1725716148782,3.9151,127.72,127.69,3.9156]
[1725716148985,3.9151,127.72,127.7,3.95769682]
[1725716149185,3.9151,127.72,127.7,13.59769682]
[1725716150685,3.9148,127.73,127.7,17.51309682]
[1725716151486,3.9148,127.73,127.7,7.87309682]
[1725716151787,3.9148,127.73,127.7,17.51309682]
[1725716152189,100.67749476,127.77,127.71,9.64]
[1725716152390,23.56,127.81,127.73,9.64]
[1725716152581,9.64,127.79,127.73,9.64]
[1725716152781,3.9139,127.76,127.73,13.5545]
[1725716153481,3.9136,127.77,127.74,3.9143]
[1725716153681,3.9136,127.77,127.73,9.64]
[1725716154181,3.9136,127.77,127.73,13.5545]
[1725716154684,3.9138,127.76,127.73,13.5545]
[1725716154885,3.9138,127.76,127.73,3.9145]
[1725716156387,3.9138,127.76,127.72,13.5548]
[1725716158393,3.9143,127.75,127.71,3.915]
[1725716158582,3.9143,127.75,127.72,9.64]
[1725716159280,3.9143,127.75,127.72,13.555]
[1725716160990,3.9144,127.74,127.7,6.61089682]
[1725716161184,3.9144,127.74,127.71,9.64]
[1725716162281,3.9144,127.74,127.72,3.9149]
[1725716162484,3.9144,127.74,127.69,146.68213457]
[1725716162485,9.64,127.76,127.69,146.68213457]
[1725716162788,9.64,127.76,127.69,156.32213457]
[1725716162994,3.915,127.72,127.7,4.01104063]
[1725716164694,3.915,127.72,127.7,7.92654063]
[1725716166491,3.915,127.72,127.7,4.01104063]
[1725716166794,9.64,127.76,127.7,4.01104063]
[1725716167989,3.915,127.72,127.7,4.01104063]
[1725716168902,3.915,127.72,127.7,17.56654063]
[1725716170604,4.0726,127.78,127.72,3.915]
[1725716170792,4.0726,127.78,127.7,4.01104063]
[1725716170793,4.0726,127.78,127.73,9.64]
[1725716171287,4.0726,127.78,127.74,3.91995614]
[1725716171288,3.914,127.75,127.74,3.91995614]
[1725716171487,4.0726,127.78,127.74,3.91995614]
[1725716172195,4.0726,127.78,127.73,3.9144]
[1725716172387,1.3765,127.78,127.75,9.64]
[1725716172897,1.3765,127.78,127.73,17.56794949]
[1725716172898,3.9136,127.77,127.73,17.56794949]
[1725716173491,3.9137,127.76,127.73,17.56794949]
[1725716174097,3.9137,127.76,127.73,7.92794949]
[1725716174298,3.9135,127.77,127.74,9.64]
[1725716174500,3.9135,127.77,127.73,7.92794949]
[1725716174692,3.913,127.79,127.75,13.554]
[1725716175094,123.89097404,127.82,127.76,13.5536]
[1725716175302,0.40644171,127.81,127.76,9.64]
[1725716175503,114.25097404,127.82,127.76,9.64]
[1725716176400,3.9127,127.8,127.77,3.9134]
[1725716179805,3.9131,127.78,127.76,9.64]
[1725716180003,123.89097404,127.82,127.75,9.64]
[1725716180393,3.9128,127.8,127.76,3.9135]
[1725716180598,11.027,127.82,127.76,9.64]
[1725716180999,3.913,127.79,127.75,9.64]
[1725716181903,3.913,127.79,127.76,3.9136]
[1725716184492,3.913,127.79,127.76,13.5536]
[1725716184693,3.9127,127.8,127.77,3.9134]
[1725716185305,3.9129,127.79,127.76,13.5536]
[1725716185805,3.9131,127.78,127.75,13.5539]
[1725716187109,9.64,127.81,127.75,3.85195866]
[1725716187302,9.64,127.81,127.74,13.5542]
[1725716187509,3.9139,127.76,127.74,3.92124694]
[1725716187707,9.64,127.8,127.73,9.64]
[1725716188305,3.9139,127.76,127.74,3.84843553]
[1725716189811,3.9139,127.76,127.73,13.5547]
[1725716190403,3.9139,127.76,127.74,3.87948899]
[1725716191806,3.9139,127.76,127.74,13.51948899]
[1725716192004,3.9137,127.77,127.74,13.5542]
[1725716192511,3.9137,127.77,127.75,3.92021032]
[1725716192901,9.64,127.81,127.71,1.3184]
[1725716193103,9.64,127.81,127.75,9.64]
[1725716194209,3.9136,127.77,127.75,9.64]
[1725716194507,9.64,127.8,127.73,9.64]
[1725716194710,3.9139,127.76,127.73,13.5546]
[1725716195411,9.64,127.8,127.71,3.95231751]
[1725716195412,9.64,127.78,127.71,3.95231751]
[1725716195616,9.64,127.78,127.71,9.64]
[1725716195809,3.9145,127.74,127.72,3.86108609]
[1725716197102,3.9147,127.73,127.72,3.86108609]
[1725716197710,1.3846,127.77,127.73,3.84063461]
[1725716197911,1.3846,127.77,127.74,9.64]
[1725716198212,3.914,127.75,127.74,9.64]
[1725716199506,3.914,127.75,127.73,9.64]
[1725716200514,1.3846,127.77,127.73,9.64]
[1725716201605,3.9143,127.75,127.73,9.64]
[1725716207618,1.3846,127.77,127.73,9.64]
[1725716208317,3.9142,127.75,127.73,9.64]
[1725716215318,1.4183,127.78,127.74,9.64]
[1725716215524,1.3409,127.79,127.74,9.64]
[1725716215722,3.9136,127.77,127.74,13.5542]
[1725716218913,3.9133,127.78,127.75,13.5539]
[1725716219727,3.9133,127.78,127.75,17.4487481]
[1725716225429,123.70481983,127.81,127.75,3.9139]
[1725716226333,3.9135,127.77,127.75,3.9139]
[1725716228435,2.7746,127.81,127.74,3.97705919]
[1725716228633,2.7746,127.81,127.72,4.01381313]
[1725716228634,1.4223,127.81,127.75,5.91440224]
[1725716228830,3.9128,127.79,127.71,4.01287181]
[1725716229029,3.9128,127.79,127.76,3.9136]
[1725716232235,3.9128,127.79,127.77,3.9134]
[1725716236742,1.4223,127.81,127.74,2.8092]
[1725716237039,1.4223,127.81,127.75,5.91167362]
[1725716237233,1.4223,127.81,127.76,5.91167362]
[1725716237439,3.913,127.79,127.76,3.9136]
[1725716239541,3.9127,127.8,127.77,3.9132]
[1725716241237,3.9128,127.79,127.76,3.9136]
[1725716243133,3.9128,127.79,127.74,2.8092]
[1725716243134,3.9128,127.79,127.77,3.9134]
[1725716243333,1.4223,127.81,127.74,2.8092]
[1725716243534,1.4223,127.81,127.75,9.82556938]
[1725716243734,1.4223,127.81,127.75,3.9139]
[1725716243935,3.913,127.79,127.74,2.8092]
[1725716244135,3.913,127.79,127.75,5.91222567]
[1725716244441,1.3047,127.82,127.76,5.9119253]
[1725716244738,3.9127,127.8,127.74,2.8092]
[1725716244931,3.9127,127.8,127.75,5.91140559]
[1725716245138,3.9127,127.8,127.77,3.9133]
[1725716247736,3.912,127.82,127.79,3.9127]
[1725716248341,3.9122,127.81,127.78,3.913]
[1725716248538,3.9122,127.81,127.78,3.94238574]
[1725716248744,3.9122,127.81,127.75,4.01019896]
[1725716249044,3.9122,127.81,127.78,3.9129]
[1725716249233,3.9122,127.81,127.78,7.83767007]
[1725716250035,3.9122,127.81,127.78,3.92477007]
[1725716250239,3.84804407,127.83,127.78,3.9131]
[1725716250438,130.45657351,127.85,127.74,2.8092]
[1725716250640,0.40613208,127.84,127.77,3.9132]
[1725716250847,3.9127,127.8,127.77,3.9132]
[1725716252743,3.9128,127.79,127.76,3.9136]
[1725716255443,24.8211,127.82,127.72,5.68821464]
[1725716255636,1.3521,127.78,127.73,5.91102962]
[1725716255838,1.3521,127.78,127.72,5.68821464]
[1725716256038,1.3614,127.77,127.73,2.84412111]
[1725716256241,1.3614,127.77,127.7,7.90280355]
[1725716256437,3.9146,127.74,127.71,5.91616009]
[1725716256747,1.3847,127.76,127.7,7.90280355]
[1725716256942,1.3847,127.76,127.71,5.91672761]
[1725716257154,1.3847,127.76,127.7,7.90280355]
[1725716257347,1.3847,127.76,127.71,9.83158926]
[1725716257544,3.9143,127.75,127.71,3.9152]
[1725716258647,3.9146,127.74,127.7,7.90280355]
[1725716258846,3.9146,127.74,127.67,2.6893]
[1725716259155,3.9146,127.74,127.71,3.9152]
[1725716260352,3.9146,127.74,127.7,3.9154]
[1725716260553,3.9146,127.74,127.71,5.91736026]
[1725716260749,3.9147,127.73,127.7,3.9154]
[1725716261145,3.9147,127.73,127.71,5.91737539]
[1725716261348,3.9147,127.73,127.7,3.9154]
[1725716261747,3.9145,127.74,127.71,9.83266026]
[1725716261944,3.9145,127.74,127.71,3.9153]
[1725716265254,3.9148,127.73,127.7,3.9154]
[1725716265955,3.9151,127.72,127.69,154.44699382]
[1725716266258,3.87235708,127.75,127.69,150.53129382]
[1725716266445,3.9149,127.73,127.7,5.91832815]
[1725716266648,3.87235708,127.75,127.69,154.44699382]
[1725716267049,3.87235708,127.75,127.7,3.9153]
[1725716267257,3.87235708,127.75,127.69,150.53129382]
[1725716267959,0.40697241,127.74,127.65,3.89754644]
[1725716268151,0.40697241,127.74,127.62,2.7159]
[1725716268152,0.40697241,127.73,127.66,5.92352985]
[1725716268457,3.9167,127.67,127.64,4.01465692]
[1725716268657,3.9167,127.67,127.64,3.9174]
[1725716269261,3.917,127.66,127.63,3.92535529]
[1725716269763,3.9167,127.67,127.63,7.84285529]
[1725716271357,27.6231,127.71,127.63,3.92535529]
[1725716271656,27.6231,127.71,127.62,1.4046]
[1725716271852,3.9167,127.67,127.63,9.84366155]
[1725716272056,3.9167,127.67,127.64,3.94373922]
[1725716273364,3.9167,127.67,127.64,7.86103922]
[1725716273562,4.1231,127.71,127.62,1.4046]
[1725716273759,4.1231,127.71,127.62,5.31660376]
[1725716274166,3.9162,127.68,127.65,3.9169]
[1725716274463,138.01484438,127.72,127.62,5.31660376]
[1725716274669,3.9153,127.71,127.68,3.9159]
[1725716275168,138.01484438,127.72,127.66,3.9166]
[1725716275169,3.9159,127.69,127.66,3.9166]
[1725716275767,3.9159,127.69,127.63,2.7435]
[1725716275768,3.9159,127.69,127.67,3.9165]
[1725716275970,3.9157,127.7,127.67,3.9165]
[1725716276567,3.9157,127.7,127.63,2.7435]
[1725716276568,3.9154,127.71,127.68,3.9162]
[1725716276761,3.9154,127.71,127.69,4.00682596]
[1725716277178,3.915,127.72,127.69,7.92262596]
[1725716281768,3.915,127.72,127.63,2.7435]
[1725716281769,27.6225,127.75,127.68,3.916]
[1725716281975,3.9153,127.71,127.68,3.916]
[1725716282276,27.6225,127.75,127.69,7.73648596]
[1725716282669,27.6225,127.75,127.69,3.82068596]
[1725716282866,4.1225,127.75,127.7,3.9154]
[1725716283071,4.1225,127.75,127.7,7.86260652]
[1725716283275,3.915,127.72,127.69,3.9157]
[1725716283577,3.915,127.72,127.69,7.84144696]
[1725716283777,27.6225,127.75,127.69,3.92574696]
[1725716283974,27.6225,127.75,127.63,2.7435]
[1725716283975,3.9151,127.72,127.68,3.916]
[1725716284276,3.9151,127.72,127.69,3.83370361]
[1725716285873,27.6225,127.75,127.69,3.83370361]
[1725716285874,3.9153,127.71,127.69,3.83370361]
[1725716287679,3.9151,127.72,127.69,7.74950361]
[1725716287978,3.9151,127.72,127.69,3.9158]
[1725716288275,3.9151,127.72,127.7,3.98206172]
[1725716288478,3.9148,127.73,127.7,7.89756172]
[1725716288671,3.9148,127.73,127.7,3.9155]
[1725716289172,3.9148,127.73,127.7,7.89834505]
[1725716291474,4.1225,127.75,127.71,3.9152]
[1725716292170,4.1225,127.75,127.71,7.74959562]
[1725716293279,3.9147,127.74,127.71,7.74959562]
[1725716295377,9.63,127.77,127.71,3.83439562]
[1725716295685,9.63,127.77,127.71,9.63]
[1725716295873,3.9144,127.74,127.72,3.95903501]
[1725716296779,3.9144,127.74,127.72,3.915]
[1725716296974,3.9142,127.75,127.72,7.7480117]
[1725716297179,28.7982202,127.78,127.63,2.7435]
[1725716297180,9.63,127.76,127.63,2.7435]
[1725716297375,9.63,127.75,127.63,2.7435]
[1725716297577,3.9148,127.73,127.68,9.63]
[1725716297778,3.9148,127.73,127.7,3.9154]
[1725716297976,3.9148,127.73,127.71,3.95872916]
[1725716298179,3.9148,127.73,127.71,7.87392916]
[1725716298384,3.9145,127.74,127.71,3.9152]
[1725716298584,1.3619,127.78,127.71,4.00063498]
[1725716298783,3.9144,127.74,127.72,3.9149]
[1725716298984,3.9144,127.74,127.72,7.86344644]
[1725716299587,3.9144,127.74,127.71,3.9151]
[1725716299980,3.9144,127.74,127.71,7.77169989]
[1725716302492,3.9147,127.73,127.71,3.85659989]
[1725716303389,3.9147,127.73,127.71,7.77179989]
[1725716304194,9.63,127.76,127.71,7.77179989]
[1725716304195,3.9145,127.74,127.71,7.77179989]
[1725716306098,3.9147,127.73,127.71,7.77179989]
[1725716308002,3.9145,127.74,127.71,7.77179989]
[1725716317302,3.9148,127.73,127.7,3.9154]
[1725716317511,9.63,127.73,127.64,9.95091937]
[1725716317705,9.63,127.73,127.66,9.63]
[1725716318012,3.9154,127.71,127.66,9.63]
[1725716318207,3.9154,127.71,127.67,5.93020824]
[1725716318507,3.9154,127.71,127.68,3.916]
[1725716318708,3.9151,127.72,127.67,9.63]
[1725716318909,9.63,127.74,127.68,3.9159]
[1725716319607,9.63,127.74,127.69,3.9158]
[1725716319807,9.63,127.74,127.7,3.82705412]
[1725716320011,9.63,127.74,127.67,9.63]
[1725716320206,3.915,127.72,127.68,3.9159]
[1725716320614,9.63,127.74,127.68,3.9159]
[1725716320818,3.9153,127.71,127.68,3.9159]
[1725716327117,3.9156,127.7,127.68,3.9159]
[1725716328615,9.63,127.71,127.63,2.7435]
[1725716328817,9.63,127.7,127.64,5.9350237]
[1725716329125,3.9168,127.67,127.65,5.9350237]
[1725716329414,3.9168,127.67,127.65,3.90968904]
[1725716329619,3.9168,127.67,127.64,3.9173]
[1725716329825,3.9168,127.67,127.65,5.93578414]
[1725716330019,3.9168,127.67,127.65,3.85838489]
[1725716330225,3.9168,127.67,127.64,3.9173]
[1725716330525,3.9168,127.67,127.65,5.9355377]
[1725716330713,3.9168,127.67,127.64,7.74396248]
[1725716331215,3.9168,127.67,127.65,5.93559064]
[1725716331519,3.9168,127.67,127.64,7.74396248]
[1725716331723,3.9168,127.67,127.65,5.93444571]
[1725716331919,3.9168,127.67,127.64,17.37396248]
[1725716332521,3.9168,127.67,127.65,5.9345935]
[1725716332823,3.9168,127.67,127.64,17.37396248]
[1725716333221,3.9168,127.67,127.65,5.93428979]
[1725716333523,3.9168,127.67,127.64,17.37396248]
[1725716333921,3.9168,127.67,127.65,5.93246251]
[1725716334123,3.9168,127.67,127.64,17.37396248]
[1725716334321,3.9168,127.67,127.65,5.93232604]
[1725716334522,3.9168,127.67,127.64,9.63]
[1725716334717,10.9965,127.73,127.65,15.56179285]
[1725716335017,10.9965,127.73,127.67,9.63]
[1725716335219,3.9155,127.71,127.67,13.5462]
[1725716335413,3.9155,127.71,127.68,5.92816482]
[1725716335614,3.9155,127.71,127.69,3.89785175]
[1725716335817,3.9155,127.71,127.68,3.9161]
[1725716336022,3.9155,127.71,127.69,3.86142323]
[1725716336220,3.9155,127.71,127.67,9.63]
[1725716336522,3.9155,127.71,127.68,5.92710423]
[1725716336724,3.9155,127.71,127.69,4.00713731]
[1725716337024,3.9152,127.72,127.69,3.9157]
[1725716337213,3.9152,127.72,127.69,7.88601709]
[1725716341028,3.9153,127.71,127.69,3.97031709]
[1725716341225,3.9153,127.71,127.68,3.916]
[1725716341823,3.9153,127.71,127.69,3.94250607]
[1725716342831,9.63,127.72,127.65,9.63]
[1725716343022,9.63,127.72,127.66,5.93632088]
[1725716343221,9.63,127.72,127.65,9.63]
[1725716343222,3.9154,127.71,127.68,3.9162]
[1725716344229,3.9154,127.71,127.69,3.9159]
[1725716345425,3.9154,127.71,127.68,13.546]
[1725716345629,3.9154,127.71,127.69,5.93420579]
[1725716345930,3.9154,127.71,127.68,3.916]
[1725716346128,3.9154,127.71,127.69,5.93422958]
[1725716346425,3.9154,127.71,127.68,3.916]
[1725716346632,3.9154,127.71,127.69,5.93344754]
[1725716346828,3.9154,127.71,127.68,3.916]
[1725716347824,11.0423,127.74,127.68,3.916]
[1725716348028,9.63,127.72,127.66,9.63]
[1725716348223,9.63,127.72,127.67,5.93402743]
[1725716348434,3.9155,127.71,127.68,9.85012743]
[1725716348628,3.9155,127.71,127.68,3.9161]
[1725716348839,9.63,127.72,127.67,3.86347082]
[1725716349131,9.63,127.71,127.68,5.93402743]
[1725716349325,9.63,127.71,127.65,4.0281832]
[1725716349531,3.9162,127.68,127.66,5.93601055]
[1725716349733,3.9162,127.68,127.67,5.93601055]
[1725716350031,3.9162,127.68,127.65,3.9169]
[1725716350234,3.9162,127.68,127.66,5.93745657]
[1725716350428,3.9162,127.68,127.65,3.9169]